{"text_format":"3","workbook":"xlsx","n_sheets":4,"sheets":["Inizio","Budget matrimonio","Abbigliam.-Ricevim.-Musica-Foto","Decorazioni-Fiori-Regali-Viaggi"],"not_rendered":{"charts":1,"defined_names":22},"read":"whole","date_system":"1900"}

{"sheet":"Inizio","index":0,"n_rows":7,"n_cols":2,"rows_kept":7}
[null,"INFORMAZIONI SU QUESTO MODELLO"]
[null,"Usare questo modello per tener traccia delle spese per il matrimonio."]
[null,"Immettere i costi stimati ed effettivi sostenuti in diverse categorie di fogli di lavoro separati."]
[null,"Il riepilogo e il grafico del budget del matrimonio si aggiornano automaticamente."]
[null,"Nota: "]
[null,"Altre istruzioni sono state fornite nella colonna A in ciascun foglio di lavoro. Questo testo è stato nascosto intenzionalmente. Per rimuovere il testo, selezionare la colonna A, quindi scegliere ELIMINA. Per visualizzare il testo, selezionare la colonna A, quindi modificare il colore del carattere."]
[null,"Per ulteriori informazioni sulle tabelle, premere MAIUSC, quindi F10 in una tabella, selezionare l'opzione TABELLA, quindi selezionare TESTO ALTERNATIVO."]

{"sheet":"Budget matrimonio","index":1,"n_rows":19,"n_cols":6,"rows_kept":19,"merged":[[2,2,4,5],[18,2,42,5]]}
["Creare un budget matrimonio in questo foglio di lavoro. Immettere i dettagli nelle tabelle del foglio di lavoro Abbigliamento-Ricevimento nuziale-Musica-Foto e del foglio di lavoro Decorazioni-Fiori-Regali-Viaggi per aggiornare il riepilogo e il grafico nel foglio di lavoro. Istruzioni utili per l'uso di questo foglio di lavoro si trovano nelle celle di questa colonna. L'etichetta Data del matrimonio si trova nella cella C1.",null,"Data del matrimonio:"]
["Immettere la data del matrimonio nella cella C2. I giorni rimanenti vengono calcolati automaticamente nella cella E2.",null,{"$f":"TODAY()+365","v":"2019-12-04"},"Giorni rimanenti:",{"$f":"C2-TODAY()","v":365}]
["Il titolo di questo foglio di lavoro si trova nella cella C3. L'istruzione successiva si trova nella cella A6.",null,"Riepilogo budget matrimonio"]
[]
[]
["La tabella di riepilogo budget che inizia nella cella C6 si aggiorna automaticamente. L'istruzione successiva si trova nella cella A19.",null,"CATEGORIA","STIMATI","EFFETTIVI","SUPERIORE/INFERIORE"]
[null,null,"Abbigliamento",{"$f":"Abbigliamento_Totale_sti","v":{"v":9490,"d":"9,490.00"}},{"$f":"Abbigliamento_Totale_eff","v":{"v":9770,"d":"9,770.00"}},{"$f":"RiepilogoBudget[[#This Row],[STIMATI]]-RiepilogoBudget[[#This Row],[EFFETTIVI]]","v":{"v":-280,"d":"-280.00"}}]
[null,null,"Ricevimento nuziale",{"$f":"Ricevimentonuziale_Totale_sti","v":{"v":1050,"d":"1,050.00"}},{"$f":"Ricevimentonuziale_Totale_eff","v":{"v":928,"d":"928.00"}},{"$f":"RiepilogoBudget[[#This Row],[STIMATI]]-RiepilogoBudget[[#This Row],[EFFETTIVI]]","v":{"v":122,"d":"122.00"}}]
[null,null,"Musica",{"$f":"Musica_Intrattenimento_Totale_sti","v":{"v":600,"d":"600.00"}},{"$f":"Musica_Intrattenimento_Totale_eff","v":{"v":400,"d":"400.00"}},{"$f":"RiepilogoBudget[[#This Row],[STIMATI]]-RiepilogoBudget[[#This Row],[EFFETTIVI]]","v":{"v":200,"d":"200.00"}}]
[null,null,"Stampa",{"$f":"Stampa__Elementidecorativi_Totale_sti","v":{"v":935,"d":"935.00"}},{"$f":"Stampa__Elementidecorativi_Totale_eff","v":{"v":870,"d":"870.00"}},{"$f":"RiepilogoBudget[[#This Row],[STIMATI]]-RiepilogoBudget[[#This Row],[EFFETTIVI]]","v":{"v":65,"d":"65.00"}}]
[null,null,"Fotografia",{"$f":"Fotografia_Totale_sti","v":{"v":1625,"d":"1,625.00"}},{"$f":"Fotografia_Totale_eff","v":{"v":1575,"d":"1,575.00"}},{"$f":"RiepilogoBudget[[#This Row],[STIMATI]]-RiepilogoBudget[[#This Row],[EFFETTIVI]]","v":{"v":50,"d":"50.00"}}]
[null,null,"Decorazioni",{"$f":"Decorazioni_Totale_sti","v":{"v":700,"d":"700.00"}},{"$f":"Decorazioni_Totale_eff","v":{"v":720,"d":"720.00"}},{"$f":"RiepilogoBudget[[#This Row],[STIMATI]]-RiepilogoBudget[[#This Row],[EFFETTIVI]]","v":{"v":-20,"d":"-20.00"}}]
[null,null,"Fiori",{"$f":"Fiori_Totale_sti","v":{"v":900,"d":"900.00"}},{"$f":"Fiori_Totale_eff","v":{"v":850,"d":"850.00"}},{"$f":"RiepilogoBudget[[#This Row],[STIMATI]]-RiepilogoBudget[[#This Row],[EFFETTIVI]]","v":{"v":50,"d":"50.00"}}]
[null,null,"Regali",{"$f":"Regali_Totale_sti","v":{"v":1345,"d":"1,345.00"}},{"$f":"Regali_Totale_eff","v":{"v":1075,"d":"1,075.00"}},{"$f":"RiepilogoBudget[[#This Row],[STIMATI]]-RiepilogoBudget[[#This Row],[EFFETTIVI]]","v":{"v":270,"d":"270.00"}}]
[null,null,"Viaggi",{"$f":"Viaggi_Trasporti_Totale_sti","v":{"v":100,"d":"100.00"}},{"$f":"Viaggi_Trasporti_Totale_eff","v":{"v":165,"d":"165.00"}},{"$f":"RiepilogoBudget[[#This Row],[STIMATI]]-RiepilogoBudget[[#This Row],[EFFETTIVI]]","v":{"v":-65,"d":"-65.00"}}]
[null,null,"Altro",{"$f":"Altre_Spese_Totale_sti","v":{"v":885,"d":"885.00"}},{"$f":"Altre_Spese_Totale_eff","v":{"v":1021,"d":"1,021.00"}},{"$f":"RiepilogoBudget[[#This Row],[STIMATI]]-RiepilogoBudget[[#This Row],[EFFETTIVI]]","v":{"v":-136,"d":"-136.00"}}]
[null,null,"Totale spese",{"$f":"SUBTOTAL(109,RiepilogoBudget[STIMATI])","v":{"v":17630,"d":"17,630.00"}},{"$f":"SUBTOTAL(109,RiepilogoBudget[EFFETTIVI])","v":{"v":17374,"d":"17,374.00"}},{"$f":"SUBTOTAL(109,RiepilogoBudget[SUPERIORE/INFERIORE])","v":{"v":256,"d":"256.00"}}]
[]
["Il grafico a torta nella cella C19 si aggiorna automaticamente.",null,"Il grafico a torta che mostra la percentuale delle spese di ogni categoria si trova in questa cella."]

{"sheet":"Abbigliam.-Ricevim.-Musica-Foto","index":2,"n_rows":56,"n_cols":6,"rows_kept":56,"merged":[[16,1,16,4],[28,1,28,4],[29,1,29,4],[35,1,35,4],[48,1,48,4]]}
["Immettere i costi stimati ed effettivi per ogni categoria nelle rispettive tabelle in questo foglio di lavoro. L'importo superiore o inferiore viene calcolato automaticamente. L'etichetta Abbigliamento si trova nella cella a destra. Istruzioni utili per l'uso di questo foglio di lavoro si trovano nelle celle di questa colonna. Freccia verso il basso per iniziare.","Abbigliamento",{"$nulls":3}," "]
[" Immettere i dettagli nella tabella Abbigliamento a partire dalla cella a destra. L'istruzione successiva si trova nella cella A18.","CATEGORIA","STIMATI","EFFETTIVI","SUPERIORE/INFERIORE"," "]
[null,"Anello di fidanzamento",{"v":1500,"d":"1,500.00"},{"v":1500,"d":"1,500.00"},{"$f":"'Abbigliam.-Ricevim.-Musica-Foto'!$C3-'Abbigliam.-Ricevim.-Musica-Foto'!$D3","v":{"v":0,"d":"0.00"}}]
[null,"Anello sposo 1",{"v":2000,"d":"2,000.00"},{"v":2300,"d":"2,300.00"},{"$f":"'Abbigliam.-Ricevim.-Musica-Foto'!$C4-'Abbigliam.-Ricevim.-Musica-Foto'!$D4","v":{"v":-300,"d":"-300.00 "}}]
[null,"Abito/smoking sposo 1",{"v":3000,"d":"3,000.00"},{"v":2750,"d":"2,750.00"},{"$f":"'Abbigliam.-Ricevim.-Musica-Foto'!$C5-'Abbigliam.-Ricevim.-Musica-Foto'!$D5","v":{"v":250,"d":"250.00"}}]
[null,"Velo/accessorio per capelli sposo 1",{"v":500,"d":"500.00"},{"v":500,"d":"500.00"},{"$f":"'Abbigliam.-Ricevim.-Musica-Foto'!$C6-'Abbigliam.-Ricevim.-Musica-Foto'!$D6","v":{"v":0,"d":"0.00"}}]
[null,"Scarpe sposo 1",{"v":350,"d":"350.00"},{"v":300,"d":"300.00"},{"$f":"'Abbigliam.-Ricevim.-Musica-Foto'!$C7-'Abbigliam.-Ricevim.-Musica-Foto'!$D7","v":{"v":50,"d":"50.00"}}]
[null,"Gioielli sposo 1",{"v":400,"d":"400.00"},{"v":550,"d":"550.00"},{"$f":"'Abbigliam.-Ricevim.-Musica-Foto'!$C8-'Abbigliam.-Ricevim.-Musica-Foto'!$D8","v":{"v":-150,"d":"-150.00 "}}]
[null,"Calze sposo 1",{"v":20,"d":"20.00"},{"v":20,"d":"20.00"},{"$f":"'Abbigliam.-Ricevim.-Musica-Foto'!$C9-'Abbigliam.-Ricevim.-Musica-Foto'!$D9","v":{"v":0,"d":"0.00"}}]
[null,"Anello sposo 2",{"v":300,"d":"300.00"},{"v":250,"d":"250.00"},{"$f":"'Abbigliam.-Ricevim.-Musica-Foto'!$C10-'Abbigliam.-Ricevim.-Musica-Foto'!$D10","v":{"v":50,"d":"50.00"}}]
[null,"Abito/smoking sposo 2",{"v":300,"d":"300.00"},{"v":350,"d":"350.00"},{"$f":"'Abbigliam.-Ricevim.-Musica-Foto'!$C11-'Abbigliam.-Ricevim.-Musica-Foto'!$D11","v":{"v":-50,"d":"-50.00 "}}]
[null,"Velo/accessorio per capelli sposo 2",{"v":500,"d":"500.00"},{"v":500,"d":"500.00"},{"$f":"'Abbigliam.-Ricevim.-Musica-Foto'!$C12-'Abbigliam.-Ricevim.-Musica-Foto'!$D12","v":{"v":0,"d":"0.00"}}]
[null,"Scarpe sposo 2",{"v":200,"d":"200.00"},{"v":175,"d":"175.00"},{"$f":"'Abbigliam.-Ricevim.-Musica-Foto'!$C13-'Abbigliam.-Ricevim.-Musica-Foto'!$D13","v":{"v":25,"d":"25.00"}}]
[null,"Gioielli sposo 2",{"v":400,"d":"400.00"},{"v":550,"d":"550.00"},{"$f":"'Abbigliam.-Ricevim.-Musica-Foto'!$C14-'Abbigliam.-Ricevim.-Musica-Foto'!$D14","v":{"v":-150,"d":"-150.00 "}}]
[null,"Calze sposo 2",{"v":20,"d":"20.00"},{"v":25,"d":"25.00"},{"$f":"'Abbigliam.-Ricevim.-Musica-Foto'!$C15-'Abbigliam.-Ricevim.-Musica-Foto'!$D15","v":{"v":-5,"d":"-5.00 "}}]
[null,"Totale abbigliamento",{"$f":"SUBTOTAL(109,Abbigliamento[STIMATI])","v":{"v":9490,"d":"9,490.00"}},{"$f":"SUBTOTAL(109,Abbigliamento[EFFETTIVI])","v":{"v":9770,"d":"9,770.00"}},{"$f":"SUBTOTAL(109,Abbigliamento[SUPERIORE/INFERIORE])","v":{"v":-280,"d":"-280.00 "}}]
[]
["L'etichetta Ricevimento nuziale si trova nella cella a destra.","Ricevimento nuziale*"]
["Immettere i costi per il ricevimento nuziale, esclusi quelli relativi all'intrattenimento e alle decorazioni, nella tabella a partire dalla cella a destra. L'istruzione successiva si trova nella cella A31.","CATEGORIA","STIMATI","EFFETTIVI","SUPERIORE/INFERIORE"]
[null,"Affitto sala",{"v":200,"d":"200.00"},{"v":150,"d":"150.00"},{"$f":"'Abbigliam.-Ricevim.-Musica-Foto'!$C20-'Abbigliam.-Ricevim.-Musica-Foto'!$D20","v":{"v":50,"d":"50.00"}}]
[null,"Tavoli e sedie",{"v":100,"d":"100.00"},{"v":50,"d":"50.00"},{"$f":"'Abbigliam.-Ricevim.-Musica-Foto'!$C21-'Abbigliam.-Ricevim.-Musica-Foto'!$D21","v":{"v":50,"d":"50.00"}}]
[null,"Cibo",{"v":0,"d":"0.00"},{"v":0,"d":"0.00"},{"$f":"'Abbigliam.-Ricevim.-Musica-Foto'!$C22-'Abbigliam.-Ricevim.-Musica-Foto'!$D22","v":{"v":0,"d":"0.00"}}]
[null,"Bevande",{"v":0,"d":"0.00"},{"v":0,"d":"0.00"},{"$f":"'Abbigliam.-Ricevim.-Musica-Foto'!$C23-'Abbigliam.-Ricevim.-Musica-Foto'!$D23","v":{"v":0,"d":"0.00"}}]
[null,"Biancheria da tavola",{"v":0,"d":"0.00"},{"v":0,"d":"0.00"},{"$f":"'Abbigliam.-Ricevim.-Musica-Foto'!$C24-'Abbigliam.-Ricevim.-Musica-Foto'!$D24","v":{"v":0,"d":"0.00"}}]
[null,"Torta",{"v":700,"d":"700.00"},{"v":700,"d":"700.00"},{"$f":"'Abbigliam.-Ricevim.-Musica-Foto'!$C25-'Abbigliam.-Ricevim.-Musica-Foto'!$D25","v":{"v":0,"d":"0.00"}}]
[null,"Bomboniere",{"v":50,"d":"50.00"},{"v":28,"d":"28.00"},{"$f":"'Abbigliam.-Ricevim.-Musica-Foto'!$C26-'Abbigliam.-Ricevim.-Musica-Foto'!$D26","v":{"v":22,"d":"22.00"}}]
[null,"Personale e mance",{"v":0,"d":"0.00"},{"v":0,"d":"0.00"},{"$f":"'Abbigliam.-Ricevim.-Musica-Foto'!$C27-'Abbigliam.-Ricevim.-Musica-Foto'!$D27","v":{"v":0,"d":"0.00"}}]
[null,"Totale ricevimento nuziale",{"$f":"SUBTOTAL(109,Ricevimento_nuziale[STIMATI])","v":{"v":1050,"d":"1050.00"}},{"$f":"SUBTOTAL(109,Ricevimento_nuziale[EFFETTIVI])","v":{"v":928,"d":"928.00"}},{"$f":"SUBTOTAL(109,Ricevimento_nuziale[SUPERIORE/INFERIORE])","v":{"v":122,"d":"122.00"}}]
[null,"*Intrattenimento e decorazioni esclusi"]
[]
["L'etichetta Musica/Intrattenimento si trova nella cella a destra.","Musica/intrattenimento"]
["Immettere i dettagli nella tabella Musica a partire dalla cella a destra. L'istruzione successiva si trova nella cella A37.","CATEGORIA","STIMATI","EFFETTIVI","SUPERIORE/INFERIORE"]
[null,"Musicisti per la cerimonia",{"v":400,"d":"400.00"},{"v":400,"d":"400.00"},{"$f":"'Abbigliam.-Ricevim.-Musica-Foto'!$C33-'Abbigliam.-Ricevim.-Musica-Foto'!$D33","v":{"v":0,"d":"0.00"}}]
[null,"Gruppo/DJ per il ricevimento",{"v":200,"d":"200.00"},{"v":0,"d":"0.00"},{"$f":"'Abbigliam.-Ricevim.-Musica-Foto'!$C34-'Abbigliam.-Ricevim.-Musica-Foto'!$D34","v":{"v":200,"d":"200.00"}}]
[null,"Totale musica/intrattenimento",{"$f":"SUBTOTAL(109,Musica[STIMATI])","v":{"v":600,"d":"600.00"}},{"$f":"SUBTOTAL(109,Musica[EFFETTIVI])","v":{"v":400,"d":"400.00"}},{"$f":"SUBTOTAL(109,Musica[SUPERIORE/INFERIORE])","v":{"v":200,"d":"200.00"}}]
[]
["L'etichetta Stampa/Elementi decorativi si trova nella cella a destra.","Stampa/elementi decorativi"]
["Immettere i dettagli nella tabella Stampa a partire dalla cella a destra. L'istruzione successiva si trova nella cella A50.","CATEGORIA","STIMATI","EFFETTIVI","SUPERIORE/INFERIORE"]
[null,"Inviti",{"v":500,"d":"500.00"},{"v":450,"d":"450.00"},{"$f":"'Abbigliam.-Ricevim.-Musica-Foto'!$C39-'Abbigliam.-Ricevim.-Musica-Foto'!$D39","v":{"v":50,"d":"50.00"}}]
[null,"Annunci",{"v":200,"d":"200.00"},{"v":175,"d":"175.00"},{"$f":"'Abbigliam.-Ricevim.-Musica-Foto'!$C40-'Abbigliam.-Ricevim.-Musica-Foto'!$D40","v":{"v":25,"d":"25.00"}}]
[null,"Biglietti di ringraziamento",{"v":100,"d":"100.00"},{"v":100,"d":"100.00"},{"$f":"'Abbigliam.-Ricevim.-Musica-Foto'!$C41-'Abbigliam.-Ricevim.-Musica-Foto'!$D41","v":{"v":0,"d":"0.00"}}]
[null,"Elementi decorativi personali",{"v":0,"d":"0.00"},{"v":0,"d":"0.00"},{"$f":"'Abbigliam.-Ricevim.-Musica-Foto'!$C42-'Abbigliam.-Ricevim.-Musica-Foto'!$D42","v":{"v":0,"d":"0.00"}}]
[null,"Libro degli ospiti",{"v":25,"d":"25.00"},{"v":25,"d":"25.00"},{"$f":"'Abbigliam.-Ricevim.-Musica-Foto'!$C43-'Abbigliam.-Ricevim.-Musica-Foto'!$D43","v":{"v":0,"d":"0.00"}}]
[null,"Programmi",{"v":75,"d":"75.00"},{"v":80,"d":"80.00"},{"$f":"'Abbigliam.-Ricevim.-Musica-Foto'!$C44-'Abbigliam.-Ricevim.-Musica-Foto'!$D44","v":{"v":-5,"d":"-5.00 "}}]
[null,"Tovaglioli del ricevimento",{"v":35,"d":"35.00"},{"v":40,"d":"40.00"},{"$f":"'Abbigliam.-Ricevim.-Musica-Foto'!$C45-'Abbigliam.-Ricevim.-Musica-Foto'!$D45","v":{"v":-5,"d":"-5.00 "}}]
[null,"Fiammiferi",{"v":0,"d":"0.00"},{"v":0,"d":"0.00"},{"$f":"'Abbigliam.-Ricevim.-Musica-Foto'!$C46-'Abbigliam.-Ricevim.-Musica-Foto'!$D46","v":{"v":0,"d":"0.00"}}]
[null,"Calligrafia",{"v":0,"d":"0.00"},{"v":0,"d":"0.00"},{"$f":"'Abbigliam.-Ricevim.-Musica-Foto'!$C47-'Abbigliam.-Ricevim.-Musica-Foto'!$D47","v":{"v":0,"d":"0.00"}}]
[null,"Totale stampa/elementi decorativi",{"$f":"SUBTOTAL(109,Stampa[STIMATI])","v":{"v":935,"d":"935.00"}},{"$f":"SUBTOTAL(109,Stampa[EFFETTIVI])","v":{"v":870,"d":"870.00"}},{"$f":"SUBTOTAL(109,Stampa[SUPERIORE/INFERIORE])","v":{"v":65,"d":"65.00"}}]
[]
["L'etichetta Fotografia si trova nella cella a destra.","Fotografia"]
["Immettere i dettagli nella tabella Fotografia a partire dalla cella a destra.","CATEGORIA","STIMATI","EFFETTIVI","SUPERIORE/INFERIORE"]
[null,"Cerimonia",{"v":1300,"d":"1,300.00"},{"v":1300,"d":"1,300.00"},{"$f":"'Abbigliam.-Ricevim.-Musica-Foto'!$C52-'Abbigliam.-Ricevim.-Musica-Foto'!$D52","v":{"v":0,"d":"0.00"}}]
[null,"Stampe aggiuntive",{"v":25,"d":"25.00"},{"v":25,"d":"25.00"},{"$f":"'Abbigliam.-Ricevim.-Musica-Foto'!$C53-'Abbigliam.-Ricevim.-Musica-Foto'!$D53","v":{"v":0,"d":"0.00"}}]
[null,"Album fotografici",{"v":100,"d":"100.00"},{"v":100,"d":"100.00"},{"$f":"'Abbigliam.-Ricevim.-Musica-Foto'!$C54-'Abbigliam.-Ricevim.-Musica-Foto'!$D54","v":{"v":0,"d":"0.00"}}]
[null,"Servizi video",{"v":200,"d":"200.00"},{"v":150,"d":"150.00"},{"$f":"'Abbigliam.-Ricevim.-Musica-Foto'!$C55-'Abbigliam.-Ricevim.-Musica-Foto'!$D55","v":{"v":50,"d":"50.00"}}]
[null,"Totale fotografia",{"$f":"SUBTOTAL(109,Fotografia[STIMATI])","v":{"v":1625,"d":"1,625.00"}},{"$f":"SUBTOTAL(109,Fotografia[EFFETTIVI])","v":{"v":1575,"d":"1,575.00"}},{"$f":"SUBTOTAL(109,Fotografia[SUPERIORE/INFERIORE])","v":{"v":50,"d":"50.00"}}]

{"sheet":"Decorazioni-Fiori-Regali-Viaggi","index":3,"n_rows":48,"n_cols":5,"rows_kept":48,"merged":[[8,1,8,4],[9,1,9,4],[18,1,18,4],[27,1,27,4],[34,1,34,4]]}
["Immettere i costi stimati ed effettivi per ogni categoria nelle rispettive tabelle in questo foglio di lavoro. L'importo superiore o inferiore viene calcolato automaticamente. L'etichetta Decorazioni si trova nella cella a destra. Istruzioni utili per l'uso di questo foglio di lavoro si trovano nelle celle di questa colonna. Freccia verso il basso per iniziare.","Decorazioni*"]
["Immettere i costi per le decorazioni, esclusi quelli relativi ai fiori, nella tabella a partire dalla cella a destra. L'istruzione successiva si trova nella cella A11.","CATEGORIA","STIMATI","EFFETTIVI","SUPERIORE/INFERIORE"]
[null,"Rivestimenti per sedie",{"v":0,"d":"0.00"},{"v":0,"d":"0.00"},{"$f":"'Decorazioni-Fiori-Regali-Viaggi'!$C3-'Decorazioni-Fiori-Regali-Viaggi'!$D3","v":{"v":0,"d":"0.00"}}]
[null,"Centrotavola",{"v":300,"d":"300.00"},{"v":320,"d":"320.00"},{"$f":"'Decorazioni-Fiori-Regali-Viaggi'!$C4-'Decorazioni-Fiori-Regali-Viaggi'!$D4","v":{"v":-20,"d":"-20.00 "}}]
[null,"Candeline",{"v":100,"d":"100.00"},{"v":75,"d":"75.00"},{"$f":"'Decorazioni-Fiori-Regali-Viaggi'!$C5-'Decorazioni-Fiori-Regali-Viaggi'!$D5","v":{"v":25,"d":"25.00"}}]
[null,"Illuminazione",{"v":100,"d":"100.00"},{"v":75,"d":"75.00"},{"$f":"'Decorazioni-Fiori-Regali-Viaggi'!$C6-'Decorazioni-Fiori-Regali-Viaggi'!$D6","v":{"v":25,"d":"25.00"}}]
[null,"Palloncini",{"v":200,"d":"200.00"},{"v":250,"d":"250.00"},{"$f":"'Decorazioni-Fiori-Regali-Viaggi'!$C7-'Decorazioni-Fiori-Regali-Viaggi'!$D7","v":{"v":-50,"d":"-50.00 "}}]
[null,"Totale decorazioni",{"$f":"SUBTOTAL(109,Decorazioni[STIMATI])","v":{"v":700,"d":"700.00"}},{"$f":"SUBTOTAL(109,Decorazioni[EFFETTIVI])","v":{"v":720,"d":"720.00"}},{"$f":"SUBTOTAL(109,Decorazioni[SUPERIORE/INFERIORE])","v":{"v":-20,"d":"-20.00 "}}]
[null,"*Fiori esclusi"]
[]
["L'etichetta Fiori si trova nella cella a destra.","Fiori"]
["Immettere i dettagli nella tabella Fiori a partire dalla cella a destra. L'istruzione successiva si trova nella cella A20.","CATEGORIA","STIMATI","EFFETTIVI","SUPERIORE/INFERIORE"]
[null,"Bouquet",{"v":500,"d":"500.00"},{"v":450,"d":"450.00"},{"$f":"'Decorazioni-Fiori-Regali-Viaggi'!$C13-'Decorazioni-Fiori-Regali-Viaggi'!$D13","v":{"v":50,"d":"50.00"}}]
[null,"Fiore all'occhiello",{"v":0,"d":"0.00"},{"v":0,"d":"0.00"},{"$f":"'Decorazioni-Fiori-Regali-Viaggi'!$C14-'Decorazioni-Fiori-Regali-Viaggi'!$D14","v":{"v":0,"d":"0.00"}}]
[null,"Corsage",{"v":0,"d":"0.00"},{"v":0,"d":"0.00"},{"$f":"'Decorazioni-Fiori-Regali-Viaggi'!$C15-'Decorazioni-Fiori-Regali-Viaggi'!$D15","v":{"v":0,"d":"0.00"}}]
[null,"Cerimonia",{"v":400,"d":"400.00"},{"v":400,"d":"400.00"},{"$f":"'Decorazioni-Fiori-Regali-Viaggi'!$C16-'Decorazioni-Fiori-Regali-Viaggi'!$D16","v":{"v":0,"d":"0.00"}}]
[null,"Ricevimento nuziale",{"v":0,"d":"0.00"},{"v":0,"d":"0.00"},{"$f":"'Decorazioni-Fiori-Regali-Viaggi'!$C17-'Decorazioni-Fiori-Regali-Viaggi'!$D17","v":{"v":0,"d":"0.00"}}]
[null,"Totale fiori",{"$f":"SUBTOTAL(109,Fiori[STIMATI])","v":{"v":900,"d":"900.00"}},{"$f":"SUBTOTAL(109,Fiori[EFFETTIVI])","v":{"v":850,"d":"850.00"}},{"$f":"SUBTOTAL(109,Fiori[SUPERIORE/INFERIORE])","v":{"v":50,"d":"50.00"}}]
[]
["L'etichetta Regali si trova nella cella a destra.","Regali"]
["Immettere i dettagli nella tabella Regali a partire dalla cella a destra. L'istruzione successiva si trova nella cella A29.","CATEGORIA","STIMATI","EFFETTIVI","SUPERIORE/INFERIORE"]
[null,"Partecipanti",{"v":1000,"d":"1,000.00"},{"v":400,"d":"400.00"},{"$f":"'Decorazioni-Fiori-Regali-Viaggi'!$C22-'Decorazioni-Fiori-Regali-Viaggi'!$D22","v":{"v":600,"d":"600.00"}}]
[null,"Sposo 1",{"v":150,"d":"150.00"},{"v":200,"d":"200.00"},{"$f":"'Decorazioni-Fiori-Regali-Viaggi'!$C23-'Decorazioni-Fiori-Regali-Viaggi'!$D23","v":{"v":-50,"d":"-50.00 "}}]
[null,"Sposo 2",{"v":150,"d":"150.00"},{"v":200,"d":"200.00"},{"$f":"'Decorazioni-Fiori-Regali-Viaggi'!$C24-'Decorazioni-Fiori-Regali-Viaggi'!$D24","v":{"v":-50,"d":"-50.00 "}}]
[null,"Genitori",{"v":25,"d":"25.00"},{"v":25,"d":"25.00"},{"$f":"'Decorazioni-Fiori-Regali-Viaggi'!$C25-'Decorazioni-Fiori-Regali-Viaggi'!$D25","v":{"v":0,"d":"0.00"}}]
[null,"Lettori/altri partecipanti",{"v":20,"d":"20.00"},{"v":250,"d":"250.00"},{"$f":"'Decorazioni-Fiori-Regali-Viaggi'!$C26-'Decorazioni-Fiori-Regali-Viaggi'!$D26","v":{"v":-230,"d":"-230.00 "}}]
[null,"Totale regali",{"$f":"SUBTOTAL(109,Regali[STIMATI])","v":{"v":1345,"d":"1,345.00"}},{"$f":"SUBTOTAL(109,Regali[EFFETTIVI])","v":{"v":1075,"d":"1,075.00"}},{"$f":"SUBTOTAL(109,Regali[SUPERIORE/INFERIORE])","v":{"v":270,"d":"270.00"}}]
[]
["L'etichetta Viaggi/Trasporti si trova nella cella a destra.","Viaggi/trasporti"]
["Immettere i dettagli nella tabella Viaggi a partire dalla cella a destra. L'istruzione successiva si trova nella cella A36.","CATEGORIA","STIMATI","EFFETTIVI","SUPERIORE/INFERIORE"]
[null,"Limousine/tram",{"v":100,"d":"100.00"},{"v":125,"d":"125.00"},{"$f":"'Decorazioni-Fiori-Regali-Viaggi'!$C31-'Decorazioni-Fiori-Regali-Viaggi'!$D31","v":{"v":-25,"d":"-25.00 "}}]
[null,"Parcheggio",{"v":0,"d":"0.00"},{"v":40,"d":"40.00"},{"$f":"'Decorazioni-Fiori-Regali-Viaggi'!$C32-'Decorazioni-Fiori-Regali-Viaggi'!$D32","v":{"v":-40,"d":"-40.00 "}}]
[null,"Taxi",{"v":0,"d":"0.00"},{"v":0,"d":"0.00"},{"$f":"'Decorazioni-Fiori-Regali-Viaggi'!$C33-'Decorazioni-Fiori-Regali-Viaggi'!$D33","v":{"v":0,"d":"0.00"}}]
[null,"Totale viaggi/trasporti",{"$f":"SUBTOTAL(109,Viaggi[STIMATI])","v":{"v":100,"d":"100.00"}},{"$f":"SUBTOTAL(109,Viaggi[EFFETTIVI])","v":{"v":165,"d":"165.00"}},{"$f":"SUBTOTAL(109,Viaggi[SUPERIORE/INFERIORE])","v":{"v":-65,"d":"-65.00 "}}]
[]
["L'etichetta Altre spese si trova nella cella a destra.","Altre spese"]
["Immettere i dettagli nella tabella Altre spese a partire dalla cella a destra.","CATEGORIA","STIMATI","EFFETTIVI","SUPERIORE/INFERIORE"]
[null,"Officiante",{"v":0,"d":"0.00"},{"v":0,"d":"0.00"},{"$f":"'Decorazioni-Fiori-Regali-Viaggi'!$C38-'Decorazioni-Fiori-Regali-Viaggi'!$D38","v":{"v":0,"d":"0.00"}}]
[null,"Compenso per la chiesa/sede della cerimonia",{"v":40,"d":"40.00"},{"v":55,"d":"55.00"},{"$f":"'Decorazioni-Fiori-Regali-Viaggi'!$C39-'Decorazioni-Fiori-Regali-Viaggi'!$D39","v":{"v":-15,"d":"-15.00 "}}]
[null,"Coordinatore per il matrimonio",{"v":0,"d":"0.00"},{"v":0,"d":"0.00"},{"$f":"'Decorazioni-Fiori-Regali-Viaggi'!$C40-'Decorazioni-Fiori-Regali-Viaggi'!$D40","v":{"v":0,"d":"0.00"}}]
[null,"Cena prenuziale",{"v":450,"d":"450.00"},{"v":450,"d":"450.00"},{"$f":"'Decorazioni-Fiori-Regali-Viaggi'!$C41-'Decorazioni-Fiori-Regali-Viaggi'!$D41","v":{"v":0,"d":"0.00"}}]
[null,"Festa di fidanzamento",{"v":20,"d":"20.00"},{"v":50,"d":"50.00"},{"$f":"'Decorazioni-Fiori-Regali-Viaggi'!$C42-'Decorazioni-Fiori-Regali-Viaggi'!$D42","v":{"v":-30,"d":"-30.00 "}}]
[null,"Feste",{"v":30,"d":"30.00"},{"v":20,"d":"20.00"},{"$f":"'Decorazioni-Fiori-Regali-Viaggi'!$C43-'Decorazioni-Fiori-Regali-Viaggi'!$D43","v":{"v":10,"d":"10.00"}}]
[null,"Appuntamenti dal parrucchiere",{"v":45,"d":"45.00"},{"v":46,"d":"46.00"},{"$f":"'Decorazioni-Fiori-Regali-Viaggi'!$C44-'Decorazioni-Fiori-Regali-Viaggi'!$D44","v":{"v":-1,"d":"-1.00 "}}]
[null,"Feste di addio al celibato/nubilato",{"v":0,"d":"0.00"},{"v":0,"d":"0.00"},{"$f":"'Decorazioni-Fiori-Regali-Viaggi'!$C45-'Decorazioni-Fiori-Regali-Viaggi'!$D45","v":{"v":0,"d":"0.00"}}]
[null,"Aperitivo",{"v":300,"d":"300.00"},{"v":400,"d":"400.00"},{"$f":"'Decorazioni-Fiori-Regali-Viaggi'!$C46-'Decorazioni-Fiori-Regali-Viaggi'!$D46","v":{"v":-100,"d":"-100.00 "}}]
[null,"Camere d'albergo",{"v":0,"d":"0.00"},{"v":0,"d":"0.00"},{"$f":"'Decorazioni-Fiori-Regali-Viaggi'!$C47-'Decorazioni-Fiori-Regali-Viaggi'!$D47","v":{"v":0,"d":"0.00"}}]
[null,"Totale delle altre spese",{"$f":"SUBTOTAL(109,AltreSpese[STIMATI])","v":{"v":885,"d":"885.00"}},{"$f":"SUBTOTAL(109,AltreSpese[EFFETTIVI])","v":{"v":1021,"d":"1,021.00"}},{"$f":"SUBTOTAL(109,AltreSpese[SUPERIORE/INFERIORE])","v":{"v":-136,"d":"-136.00 "}}]